bitfinex/quotes_BTCUSD_20220218
["timestamp","ask_amount","ask_price","bid_price","bid_amount"]
[1645195416545,0.0421,39731.0,39730.0,0.35096709]
[1645195416750,0.0421,39731.0,39730.0,0.45096709]
[1645195416945,0.378455,39731.0,39730.0,0.45096709]
[1645195417348,0.59058416,39731.0,39730.0,0.35096709]
[1645195417544,0.59058416,39731.0,39713.0,0.00977675]
[1645195417545,1.1,39730.0,39713.0,0.00977675]
[1645195417747,0.33980519,39718.0,39709.0,0.001]
[1645195417943,0.3,39730.0,39709.0,0.001]
[1645195417944,0.310967,39717.0,39709.0,0.001]
[1645195418144,0.0421,39716.0,39709.0,0.001]
[1645195418342,0.236329,39715.0,39709.0,0.001]
[1645195418546,0.0421,39714.0,39709.0,0.001]
[1645195418745,0.268867,39713.0,39709.0,0.001]
[1645195418946,0.105092,39714.0,39710.0,0.146]
[1645195419143,0.0421,39714.0,39710.0,0.2]
[1645195419345,0.0421,39714.0,39712.0,0.141]
[1645195419544,0.3,39723.0,39712.0,0.141]
[1645195419545,0.125969,39721.0,39712.0,0.141]
[1645195419843,0.16867,39720.0,39711.0,0.22368284]
[1645195420290,0.231656,39720.0,39709.0,0.001]
[1645195420486,0.53107521,39720.0,39709.0,0.001]
[1645195420687,0.23107521,39720.0,39709.0,0.001]
[1645195420890,0.33107521,39720.0,39709.0,0.01107504]
[1645195421087,0.3,39719.0,39709.0,0.01107504]
[1645195421287,0.336526,39718.0,39709.0,0.01107504]
[1645195421689,0.16809,39710.0,39709.0,0.01107504]
[1645195421888,0.16593,39710.0,39709.0,0.01107504]
[1645195422288,0.26593,39710.0,39709.0,0.01107504]
[1645195423288,0.26593,39710.0,39709.0,0.01098941]
[1645195424160,0.9,39709.0,39708.0,0.001]
[1645195424361,0.336523,39708.0,39704.0,0.002]
[1645195424561,0.336523,39708.0,39695.0,0.06441823]
[1645195424562,0.5,39704.0,39695.0,0.06441823]
[1645195424762,0.336523,39704.0,39695.0,0.06441823]
[1645195424960,0.436523,39704.0,39695.0,0.06441823]
[1645195425161,0.436523,39704.0,39696.0,0.32361459]
[1645195425561,0.336523,39704.0,39696.0,0.32361459]
[1645195425761,0.1,39697.0,39696.0,0.62361459]
[1645195425962,0.1,39697.0,39696.0,0.52713359]
[1645195426762,0.4,39708.0,39696.0,0.52713359]
[1645195426970,0.063012,39714.0,39699.0,1.31358708]
[1645195426971,0.063,39714.0,39699.0,1.31358708]
[1645195427165,0.1,39711.0,39703.0,0.141]
[1645195427366,0.1,39709.0,39704.0,1.31358708]
[1645195427568,0.1,39709.0,39707.0,0.25984304]
[1645195428187,0.1,39709.0,39707.0,1.57343012]
[1645195428389,0.1,39712.0,39711.0,1.45458708]
[1645195428586,0.1,39712.0,39707.0,0.25984304]
[1645195428587,0.05,39721.0,39713.0,1.45458708]
[1645195428787,0.10017998,39722.0,39714.0,1.31358708]
[1645195428989,0.336564,39721.0,39720.0,0.1907562]
[1645195429189,0.1,39722.0,39720.0,0.0735562]
[1645195429389,0.10018003,39722.0,39721.0,0.141]
[1645195429592,0.00018003,39722.0,39720.0,0.4145562]
[1645195429793,0.00018003,39722.0,39720.0,1.38714328]
[1645195429794,0.10018003,39722.0,39720.0,1.38714328]
[1645195429991,0.05,39731.0,39722.0,1.31358708]
[1645195430190,0.3,39737.0,39727.0,0.32660035]
[1645195430393,0.165885,39736.0,39729.0,0.26948582]
[1645195430595,0.039,39741.0,39720.0,0.2]
[1645195430596,0.1,39728.0,39720.0,0.2]
[1645195430792,0.1,39728.0,39716.0,1.514]
[1645195430793,0.05982532,39728.0,39716.0,1.514]
[1645195430992,0.05982532,39730.0,39722.0,0.141]
[1645195431193,0.336458,39739.0,39728.0,0.25822959]
[1645195431459,0.331458,39739.0,39728.0,0.25822959]
[1645195431649,0.331458,39739.0,39729.0,0.26999411]
[1645195431650,0.164297,39737.0,39729.0,0.26999411]
[1645195432048,0.1,39730.0,39729.0,0.26999411]
[1645195432250,0.164297,39729.0,39728.0,0.5088904]
[1645195432649,0.264297,39729.0,39728.0,0.5088904]
[1645195432848,0.24982662,39729.0,39728.0,0.45263768]
[1645195433048,0.24982662,39729.0,39723.0,0.341]
[1645195433255,0.24982662,39729.0,39718.0,0.062966]
[1645195433256,0.336455,39728.0,39713.0,0.00082547]
[1645195433450,0.1,39724.0,39716.0,0.2]
[1645195433648,0.00018004,39730.0,39716.0,1.514]
[1645195433649,0.1,39722.0,39716.0,1.514]
[1645195433850,0.095,39722.0,39716.0,1.57696903]
[1645195434050,0.095,39722.0,39720.0,0.25598231]
[1645195434250,0.00018003,39724.0,39720.0,0.25598231]
[1645195434251,0.336455,39721.0,39720.0,0.25598231]
[1645195434650,0.1,39722.0,39721.0,0.2]
[1645195434854,0.00018003,39724.0,39721.0,1.514]
[1645195435053,0.05,39732.0,39724.0,1.314]
[1645195435291,0.1,39733.0,39729.0,0.2584719]
[1645195435491,0.1,39733.0,39731.0,0.22131464]
[1645195435694,0.336455,39732.0,39731.0,0.22131464]
[1645195436794,0.10017905,39733.0,39732.0,1.486424]
[1645195436795,0.00017905,39733.0,39732.0,1.486424]
[1645195436992,0.00017905,39733.0,39732.0,1.15]
[1645195437394,0.1,39740.0,39732.0,1.15]
[1645195437593,0.1,39740.0,39734.0,0.141]
[1645195437792,0.1,39740.0,39739.0,0.54057739]
[1645195437992,0.244835,39740.0,39739.0,0.48760406]
[1645195438599,0.1,39740.0,39739.0,0.48760406]
[1645195438794,0.244835,39740.0,39739.0,0.48760406]
[1645195439443,0.1,39740.0,39739.0,0.48760406]
[1645195439644,0.244835,39740.0,39739.0,0.24524521]
[1645195440044,0.1,39740.0,39739.0,0.24524521]
[1645195440249,0.05,39753.0,39739.0,0.24524521]
[1645195440250,0.1,39744.0,39740.0,0.336424]
[1645195440447,0.05,39753.0,39745.0,1.314]
[1645195440651,0.00072084,39759.0,39744.0,1.15]
[1645195440652,0.00072084,39759.0,39751.0,1.314]
[1645195440846,0.1,39755.0,39753.0,1.314]
[1645195441051,0.065,39762.0,39753.0,1.314]
[1645195441052,0.065,39762.0,39754.0,1.89052031]
[1645195441244,0.015,39762.0,39761.0,0.25760827]
[1645195441444,0.015,39762.0,39761.0,0.52234437]
[1645195441846,0.015,39762.0,39749.0,0.141]
[1645195442047,0.015,39762.0,39753.0,0.2]
[1645195442048,0.1,39762.0,39753.0,0.2]
[1645195442245,0.05,39772.0,39761.0,0.2]
[1645195442445,0.05,39772.0,39751.0,0.3]
[1645195442693,0.05,39772.0,39753.0,1.314]
[1645195442694,0.00017001,39757.0,39753.0,1.314]
[1645195442893,0.00017001,39757.0,39754.0,1.76592831]
[1645195443091,0.00017001,39757.0,39755.0,1.614]
[1645195443291,0.00017001,39757.0,39753.0,0.12580547]
[1645195443498,0.1,39764.0,39737.0,0.1998]
[1645195443499,0.3,39761.0,39737.0,0.1998]
[1645195443705,0.0061503,39756.0,39739.0,0.0999]
[1645195443894,0.1,39748.0,39739.0,0.0999]
[1645195444096,0.134835,39747.0,39739.0,0.0999]
[1645195444296,0.1,39740.0,39727.0,0.336]
[1645195444494,0.1,39740.0,39727.0,0.2]
[1645195444695,0.1,39733.0,39728.0,0.31294916]
[1645195444894,0.1,39733.0,39729.0,0.472408]
[1645195445098,0.1,39742.0,39736.0,0.2]
[1645195445295,0.10018039,39743.0,39737.0,0.136]
[1645195445697,0.00018039,39743.0,39740.0,0.336]
[1645195445897,0.15,39748.0,39741.0,0.336408]
[1645195446095,0.1,39748.0,39747.0,0.24993741]
[1645195446553,0.0098,39755.0,39747.0,0.58634541]
[1645195446851,0.1,39752.0,39745.0,0.18978195]
[1645195447251,0.1,39752.0,39749.0,0.25394594]
[1645195447252,0.062934,39751.0,39749.0,0.25394594]
[1645195447552,0.062934,39751.0,39745.0,0.18978195]
[1645195447752,0.134837,39750.0,39739.0,0.336]
[1645195447953,0.062934,39751.0,39746.0,0.2]
[1645195447954,0.1,39751.0,39746.0,0.2]
[1645195448154,0.00017001,39753.0,39746.0,0.195]
[1645195448352,0.1,39754.0,39746.0,0.195]
[1645195448552,0.00018055,39750.0,39745.0,0.136]
[1645195448754,0.00018055,39750.0,39736.0,0.136]
[1645195449061,0.00018055,39750.0,39738.0,0.29530187]
[1645195449062,0.134837,39749.0,39738.0,0.29530187]
[1645195449457,0.1,39746.0,39739.0,0.3]
[1645195449653,0.12588,39752.0,39739.0,0.3]
[1645195449654,0.134837,39745.0,39739.0,0.3]
[1645195449854,0.10008055,39745.0,39738.0,0.29530187]
[1645195450056,0.10008055,39745.0,39739.0,0.58001222]
[1645195450289,0.00018055,39745.0,39740.0,0.26313758]
[1645195450491,0.00018055,39745.0,39740.0,0.89413758]
[1645195450691,0.0096,39754.0,39740.0,0.59413758]
[1645195450692,0.1,39753.0,39740.0,0.59413758]
[1645195450889,0.1,39753.0,39740.0,0.89413758]
[1645195451089,0.00018055,39744.0,39740.0,0.26313758]
[1645195451291,0.00018055,39744.0,39733.0,0.3]
[1645195451497,0.134837,39742.0,39733.0,0.3]
[1645195451695,0.134837,39743.0,39733.0,0.3]
[1645195451893,0.1,39738.0,39733.0,0.3]
[1645195452094,0.134837,39737.0,39733.0,0.3]
[1645195452292,0.162973,39738.0,39733.0,0.3]
[1645195452293,0.43775474,39734.0,39733.0,0.3]
[1645195452492,0.234837,39734.0,39733.0,0.3]
[1645195452693,0.234837,39734.0,39733.0,0.295]
[1645195453094,0.297808,39734.0,39733.0,0.295]
[1645195453596,0.234837,39734.0,39733.0,0.295]
[1645195454448,0.134837,39734.0,39733.0,0.295]
[1645195454645,0.234837,39734.0,39733.0,0.295]
[1645195455647,0.1,39737.0,39733.0,0.295]
[1645195455845,0.134837,39736.0,39733.0,0.295]
[1645195456347,0.134837,39736.0,39735.0,0.23571054]
[1645195456549,0.134837,39736.0,39717.0,0.25180417]
[1645195456550,0.134837,39734.0,39717.0,0.25180417]
[1645195456751,0.134837,39734.0,39713.0,0.001]
[1645195456752,0.3999,39733.0,39713.0,0.001]
[1645195456948,0.1,39731.0,39713.0,0.001]
[1645195457148,0.176937,39730.0,39717.0,0.00013931]
[1645195457352,0.1,39727.0,39723.0,0.25755988]
[1645195457698,0.162972,39727.0,39725.0,0.20891645]
[1645195457891,0.162972,39727.0,39723.0,0.25755988]
[1645195458090,0.162972,39727.0,39722.0,0.19192381]
[1645195458391,0.062972,39727.0,39722.0,0.19192381]
[1645195458589,0.162972,39727.0,39722.0,0.19192381]
[1645195458791,0.026937,39730.0,39722.0,0.19192381]
[1645195458992,0.0999,39731.0,39722.0,0.19192381]
[1645195459402,0.0999,39731.0,39717.0,0.00013931]
[1645195459698,0.0999,39731.0,39723.0,0.0295]
[1645195459699,0.1,39725.0,39723.0,0.0295]
[1645195459893,0.1,39725.0,39713.0,0.00187077]
[1645195459894,2.614,39724.0,39713.0,0.00187077]
[1645195460095,2.614,39724.0,39697.0,0.002]
[1645195460096,0.255,39714.0,39697.0,0.002]
[1645195460294,0.3515,39713.0,39697.0,0.002]
[1645195460492,0.1,39701.0,39700.0,0.21213063]
[1645195460693,0.1,39701.0,39700.0,0.0001]
[1645195460893,0.1515,39713.0,39700.0,0.0001]
[1645195460894,0.1,39702.0,39700.0,0.0001]
[1645195461094,0.225915,39709.0,39702.0,0.29347656]
[1645195461456,0.1,39704.0,39700.0,0.0001]
[1645195461642,0.1,39703.0,39700.0,0.0001]
[1645195461842,0.145,39703.0,39700.0,0.0001]
[1645195462046,0.045,39703.0,39702.0,0.00067068]
[1645195462241,0.16302,39706.0,39702.0,0.00067068]
[1645195462444,0.105124,39707.0,39702.0,0.00067068]
[1645195462642,0.1,39703.0,39702.0,0.00067068]
[1645195462844,0.1,39703.0,39700.0,0.20616846]
[1645195463047,0.1,39703.0,39700.0,0.0001]
[1645195463244,0.1,39701.0,39695.0,0.07302801]
[1645195463645,0.1,39698.0,39695.0,0.07302801]
[1645195464245,0.1,39697.0,39695.0,0.07302801]
[1645195464445,0.12604458,39705.0,39696.0,0.7]
[1645195464653,0.05,39709.0,39696.0,1.336485]
[1645195464845,0.05,39709.0,39706.0,0.22314783]
[1645195465045,0.05,39709.0,39707.0,0.341485]
[1645195465046,0.1,39709.0,39707.0,0.341485]
[1645195465323,0.1,39718.0,39708.0,0.8722368]
[1645195465520,0.1,39718.0,39708.0,0.195]
[1645195465721,0.05,39720.0,39707.0,0.26360257]
[1645195465722,0.1,39716.0,39707.0,0.26360257]
[1645195465921,0.05,39720.0,39707.0,0.26360257]
[1645195465922,0.1,39715.0,39707.0,0.26360257]
[1645195466120,0.1,39715.0,39707.0,0.005]
[1645195466321,0.1,39715.0,39707.0,0.00494]
[1645195466722,0.00017831,39713.0,39707.0,0.00494]
[1645195466922,0.00017831,39713.0,39706.0,0.22314783]
[1645195467123,0.00017831,39713.0,39705.0,0.000565]
[1645195467522,0.1095,39714.0,39707.0,0.33612666]
[1645195467523,0.1,39710.0,39707.0,0.33612666]
[1645195467922,0.00017831,39711.0,39707.0,0.33612666]
[1645195468123,0.00017831,39711.0,39705.0,0.20538586]
[1645195468321,0.00017831,39711.0,39708.0,0.265719]
[1645195468724,0.1095,39714.0,39708.0,0.460659]
[1645195468947,0.0095,39714.0,39708.0,0.460659]
[1645195469140,0.00017831,39711.0,39710.0,0.31497628]
[1645195469341,0.00017831,39711.0,39708.0,0.49621955]
[1645195469541,0.00017831,39711.0,39705.0,0.000565]
[1645195469744,0.00017831,39711.0,39702.0,0.19494]
[1645195469947,0.0095,39714.0,39702.0,0.14343228]
[1645195469948,0.1095,39714.0,39702.0,0.14343228]
[1645195470442,0.1095,39714.0,39704.0,0.3178787]
[1645195471146,0.1095,39714.0,39695.0,0.07302801]
[1645195471344,0.3,39713.0,39695.0,0.21646029]
[1645195471643,0.1,39710.0,39702.0,0.00052973]
[1645195471844,0.1,39706.0,39702.0,0.00052973]
[1645195472043,0.05,39710.0,39702.0,0.00052973]
[1645195472044,0.1,39704.0,39702.0,0.00052973]
[1645195472449,0.1,39704.0,39695.0,0.21646029]
[1645195473091,0.01,39703.0,39695.0,0.21646029]
[1645195473293,0.01,39703.0,39695.0,0.36283983]
[1645195473892,0.1,39704.0,39696.0,1.1]
[1645195474093,0.1,39704.0,39695.0,0.36283983]
[1645195474294,0.09,39704.0,39698.0,0.25263889]
[1645195474694,0.063013,39709.0,39698.0,0.25263889]
[1645195474896,0.1,39704.0,39698.0,0.25263889]
[1645195475494,0.1,39704.0,39702.0,0.19310521]
[1645195475698,0.30479727,39711.0,39702.0,0.19310521]
[1645195475699,0.1,39705.0,39702.0,0.19310521]
[1645195475897,0.1,39705.0,39704.0,0.25315814]
[1645195476095,0.00479727,39711.0,39705.0,0.3]
[1645195476296,0.00479727,39711.0,39710.0,0.2370314]
[1645195476572,0.00479727,39711.0,39710.0,0.5735164]
[1645195476762,0.00479727,39711.0,39710.0,0.2370314]
[1645195477565,0.00479727,39711.0,39705.0,0.3]
[1645195478162,0.1,39708.0,39705.0,0.3]
[1645195478562,0.1,39708.0,39707.0,0.23738702]
[1645195479562,0.1,39708.0,39705.0,0.3]
[1645195479962,0.1,39708.0,39705.0,0.295]
[1645195480411,0.000172,39709.0,39706.0,0.6]
[1645195480810,0.1,39708.0,39705.0,0.295]
[1645195482007,0.00479727,39711.0,39705.0,0.295]
[1645195482208,0.0001778,39708.0,39705.0,0.295]
[1645195482409,0.1,39706.0,39705.0,0.295]
[1645195483308,0.1,39706.0,39705.0,0.215]
[1645195484245,0.15,39706.0,39705.0,0.215]
[1645195484848,0.12620143,39707.0,39705.0,0.215]
[1645195484849,0.10017793,39707.0,39705.0,0.215]
[1645195485247,0.00017793,39707.0,39705.0,0.115]
[1645195485750,0.00225739,39708.0,39707.0,0.3210488]
[1645195485946,0.00225739,39708.0,39707.0,0.23341042]
[1645195486146,0.00225739,39708.0,39707.0,0.56989542]
[1645195486348,0.00225739,39708.0,39707.0,0.23341042]
[1645195486746,0.00208526,39708.0,39707.0,0.23341042]
[1645195487547,0.00017213,39709.0,39707.0,0.53341042]
[1645195487798,0.00017213,39709.0,39707.0,0.23341042]
[1645195488000,0.1,39715.0,39707.0,0.23341042]
[1645195488200,0.1,39715.0,39708.0,0.44343228]
[1645195488404,0.00017213,39710.0,39707.0,0.23341042]
[1645195488999,0.04707123,39718.0,39713.0,0.1974732]
[1645195489401,0.03742492,39718.0,39712.0,0.19906375]
[1645195489600,0.03742492,39718.0,39705.0,0.12325607]
[1645195489601,0.000396,39712.0,39705.0,0.12325607]
[1645195490398,0.000396,39712.0,39706.0,0.25827931]
[1645195490600,0.000396,39712.0,39705.0,0.12325607]
[1645195490802,0.1,39710.0,39707.0,0.24100733]
[1645195491002,0.000396,39712.0,39705.0,0.12325607]
[1645195491200,0.15,39710.0,39705.0,0.12325607]
[1645195491451,0.163006,39710.0,39705.0,0.12325607]
[1645195491652,0.1,39707.0,39705.0,0.12325607]
[1645195492249,0.05,39710.0,39705.0,0.12325607]
[1645195492250,0.1,39706.0,39705.0,0.12325607]
[1645195492652,0.15,39707.0,39705.0,0.12325607]
[1645195492851,0.1,39706.0,39705.0,0.12325607]
[1645195494958,0.15,39706.0,39705.0,0.11829607]
[1645195495211,0.15,39706.0,39705.0,0.11809607]
[1645195495401,0.145,39706.0,39705.0,0.11809607]
[1645195495803,0.195,39706.0,39705.0,0.11809607]
[1645195496306,0.195,39706.0,39705.0,0.10809607]
[1645195496505,2.464,39705.0,39700.0,0.0251]
[1645195496706,2.464,39705.0,39695.0,0.02302801]
[1645195496707,1.314,39699.0,39695.0,0.02302801]
[1645195496905,0.1,39699.0,39695.0,0.02302801]
[1645195497104,0.1,39696.0,39695.0,0.02302801]
[1645195497505,0.15,39696.0,39695.0,0.02302801]
[1645195499146,0.14958172,39696.0,39695.0,0.02302801]
[1645195499746,0.14958172,39696.0,39695.0,0.01302801]
[1645195500554,0.14958172,39696.0,39695.0,0.15646029]
[1645195500555,0.1,39696.0,39695.0,0.15646029]
[1645195500751,0.1,39701.0,39698.0,0.14343228]
[1645195500948,0.5,39703.0,39700.0,0.25934293]
[1645195501149,0.0094,39704.0,39698.0,0.32068065]
[1645195501450,0.1,39707.0,39698.0,0.32068065]
[1645195501648,0.1,39707.0,39698.0,0.28964148]
[1645195501850,0.00017144,39712.0,39700.0,1.414]
[1645195502055,0.063,39733.0,39705.0,1.314]
[1645195502056,0.1,39718.0,39705.0,1.314]
[1645195502250,0.1,39718.0,39717.0,0.75892588]
[1645195502449,0.1,39726.0,39715.0,0.24321501]
[1645195502708,0.1,39726.0,39716.0,0.01]
[1645195502901,0.1,39726.0,39719.0,0.14343228]
[1645195503105,0.5,39730.0,39726.0,0.19952292]
[1645195503301,0.1,39731.0,39726.0,0.3853657]
[1645195503705,0.015,39742.0,39736.0,0.14343228]
[1645195503903,0.015,39742.0,39728.0,1.15]
[1645195503904,0.015,39742.0,39731.0,0.06293315]
[1645195504302,0.015,39742.0,39732.0,0.3]
[1645195504604,0.125878,39756.0,39732.0,0.3]
[1645195504605,0.0095,39760.0,39740.0,1.314]
[1645195504807,0.03815973,39778.0,39755.0,0.28414322]
[1645195504808,0.05,39758.0,39755.0,0.28414322]
[1645195505005,0.1,39756.0,39755.0,1.59814322]
[1645195505203,0.05,39774.0,39756.0,1.3141]
[1645195505404,0.1,39767.0,39765.0,0.13843228]
[1645195505603,0.5,39770.0,39757.0,0.3]
[1645195505604,0.5,39770.0,39758.0,1.0]
[1645195505803,0.5,39770.0,39756.0,0.0098]
[1645195506005,0.0099,39769.0,39756.0,0.0098]
[1645195506204,0.0099,39769.0,39748.0,0.3]
[1645195506453,0.0099,39769.0,39744.0,0.3]
[1645195506454,0.00017704,39766.0,39744.0,0.3]
[1645195506656,0.10017704,39766.0,39762.0,0.22907829]
[1645195506851,0.1,39763.0,39762.0,0.22907829]
[1645195507051,0.1,39763.0,39754.0,0.3]
[1645195507250,0.1,39763.0,39744.0,0.0099]
[1645195507251,0.1,39763.0,39744.0,0.3099]
[1645195507450,0.1,39761.0,39760.0,0.5326795]
[1645195507652,0.00017704,39764.0,39760.0,0.5326795]
[1645195508254,0.00017704,39764.0,39762.0,0.26113256]
[1645195508454,0.1,39773.0,39762.0,0.26113256]
[1645195508857,0.00017149,39764.0,39762.0,0.26113256]
[1645195509053,0.00017149,39764.0,39762.0,0.39956484]
[1645195509258,0.00017149,39764.0,39762.0,0.26113256]
[1645195509454,0.00017149,39764.0,39752.0,0.3]
[1645195509655,0.00068584,39770.0,39745.0,0.3]
[1645195509656,0.1,39768.0,39745.0,0.3]
[1645195509857,0.1,39768.0,39744.0,0.0099]
[1645195509858,0.1,39761.0,39744.0,0.0099]
[1645195510059,0.0099,39760.0,39744.0,0.0099]
[1645195510315,0.1,39756.0,39744.0,0.0099]
[1645195510519,0.1,39749.0,39744.0,0.0099]
[1645195510727,0.15,39749.0,39724.0,0.62333228]
[1645195510917,0.1,39745.0,39727.0,0.0091]
[1645195511117,0.0095,39748.0,39727.0,0.0091]
[1645195511118,0.1,39741.0,39727.0,0.0091]
[1645195511319,0.1,39741.0,39720.0,0.1009]
[1645195511320,0.3,39740.0,39720.0,0.1009]
[1645195511521,0.1,39741.0,39726.0,0.1916256]
[1645195511522,0.1,39732.0,39726.0,0.1916256]
[1645195511717,0.1,39732.0,39731.0,0.30214213]
[1645195511718,0.095,39732.0,39731.0,0.30214213]
[1645195512026,0.0092,39736.0,39728.0,0.20062119]
[1645195512216,0.062963,39740.0,39722.0,0.0097]
[1645195512217,0.1,39732.0,39722.0,0.0097]
[1645195512417,0.1,39731.0,39722.0,0.0097]
[1645195512819,0.1,39729.0,39722.0,0.0097]
[1645195513019,0.1,39729.0,39728.0,0.28875752]
[1645195513218,0.15,39729.0,39725.0,0.212355]
[1645195513417,0.15,39729.0,39725.0,0.35078728]
[1645195513418,0.00017008,39727.0,39725.0,0.35078728]
[1645195513618,0.00017008,39727.0,39720.0,0.001]
[1645195513819,0.1,39726.0,39720.0,0.001]
[1645195514065,0.1,39726.0,39723.0,0.11592587]
[1645195514266,0.05,39726.0,39723.0,0.23185174]
[1645195514469,0.2,39724.0,39695.0,0.01302801]
[1645195514772,0.05,39708.0,39703.0,0.001]
[1645195514967,0.1,39721.0,39703.0,0.001]
[1645195514968,0.063005,39713.0,39703.0,0.001]
[1645195515166,0.3,39720.0,39703.0,0.001]
[1645195515167,0.3,39720.0,39706.0,0.33042025]
[1645195515364,0.1,39720.0,39706.0,0.33042025]
[1645195515565,0.4,39720.0,39703.0,0.001]
[1645195515766,0.1,39707.0,39703.0,0.001]
[1645195515967,0.1,39707.0,39702.0,0.002]
[1645195515968,0.1,39704.0,39702.0,0.002]
[1645195516369,0.1,39703.0,39702.0,0.002]
[1645195518700,0.1,39703.0,39702.0,0.007546]
[1645195519501,0.1,39703.0,39700.0,1.0]
[1645195519502,0.1999,39703.0,39700.0,1.0]
[1645195519701,0.05,39702.0,39700.0,1.0]
[1645195519906,0.1,39701.0,39700.0,0.999]
[1645195520102,0.1,39701.0,39700.0,0.994]
[1645195520103,0.1921,39701.0,39700.0,0.994]
[1645195520302,0.15,39701.0,39700.0,0.994]
[1645195520701,1.514,39701.0,39700.0,0.237394]
[1645195520900,0.3421,39701.0,39700.0,0.060694]
[1645195521101,0.2921,39701.0,39700.0,0.060694]
[1645195521300,0.2921,39701.0,39697.0,0.00038383]
[1645195521301,0.95,39700.0,39697.0,0.00038383]
[1645195521556,0.3,39701.0,39697.0,0.00038383]
[1645195521752,0.29347875,39699.0,39693.0,0.00296078]
[1645195521955,0.1,39699.0,39693.0,0.00296078]
[1645195522155,0.15,39699.0,39693.0,0.00296078]
[1645195522353,0.1,39699.0,39698.0,1.75364595]
[1645195522562,0.1,39699.0,39698.0,0.12118711]
[1645195522563,0.2,39699.0,39698.0,0.12118711]
[1645195522756,0.71156772,39699.0,39695.0,0.01]
[1645195522955,0.71156772,39699.0,39684.0,0.00019318]
[1645195522956,0.06306,39696.0,39689.0,0.00021876]
[1645195523155,0.0421,39695.0,39689.0,0.00021876]
[1645195523454,0.1,39690.0,39689.0,0.00021876]
[1645195523657,0.09958172,39690.0,39689.0,0.00021876]
[1645195523856,0.05,39690.0,39689.0,0.00021876]
[1645195524253,0.09866801,39690.0,39689.0,0.00021876]
[1645195524458,0.03832,39690.0,39689.0,0.00021876]
[1645195524655,0.05,39689.0,39686.0,0.02017516]
[1645195524854,0.0421,39688.0,39686.0,0.02017516]
[1645195525059,0.1,39687.0,39686.0,0.02017516]
[1645195525302,0.009,39694.0,39686.0,0.02017516]
[1645195525505,0.1,39687.0,39686.0,0.02017516]
[1645195525703,0.009,39694.0,39693.0,0.19352107]
[1645195525904,0.0999,39697.0,39693.0,0.17616807]
[1645195526102,0.0421,39702.0,39691.0,0.30924864]
[1645195526304,0.1,39694.0,39688.0,0.2]
[1645195526502,0.1,39692.0,39688.0,0.2]
[1645195526902,0.1,39689.0,39688.0,0.2]
[1645195527103,0.1,39689.0,39688.0,0.40345639]
[1645195527307,0.1,39689.0,39688.0,0.7052053]
[1645195527502,0.1,39689.0,39688.0,0.40345639]
[1645195527706,0.15,39689.0,39688.0,0.2]
[1645195528103,0.0999,39701.0,39689.0,1.15]
[1645195528305,0.16293,39701.0,39689.0,1.15]
[1645195528502,0.1,39690.0,39688.0,0.2]
[1645195528706,0.063032,39699.0,39690.0,1.15]
[1645195528964,0.176065,39703.0,39694.0,0.26461367]
[1645195528965,0.05,39703.0,39694.0,0.26461367]
[1645195529153,0.1,39696.0,39694.0,0.26461367]
[1645195529352,0.1,39698.0,39692.0,0.0092]
[1645195529552,0.1,39698.0,39689.0,0.33348678]
[1645195529752,0.1,39695.0,39690.0,0.20167851]
[1645195529952,0.063033,39698.0,39690.0,0.20167851]
[1645195530261,0.1,39691.0,39690.0,0.20167851]
[1645195530454,0.1,39691.0,39690.0,0.43972037]
[1645195530653,0.1,39691.0,39690.0,0.56847546]
[1645195531052,0.1,39691.0,39690.0,0.43972037]
[1645195531852,0.063029,39702.0,39696.0,0.2096693]
[1645195532056,0.0999,39705.0,39699.0,0.12875509]
[1645195532255,0.0999,39705.0,39696.0,0.2096693]
[1645195532256,0.1,39697.0,39696.0,0.2096693]
[1645195532454,0.05,39709.0,39704.0,0.12875509]
[1645195532708,0.788,39725.0,39696.0,0.6461543]
[1645195532709,0.0095,39713.0,39708.0,0.12875509]
[1645195532908,0.788,39725.0,39708.0,0.12875509]
[1645195532909,0.1,39709.0,39708.0,0.12875509]
[1645195533103,0.10007104,39714.0,39708.0,0.12875509]
[1645195533104,0.10007104,39714.0,39710.0,0.12875509]
[1645195533303,0.10007104,39714.0,39707.0,0.23113628]
[1645195533304,0.1,39714.0,39707.0,0.23113628]
[1645195533503,0.1,39714.0,39697.0,0.0091]
[1645195533504,0.1,39714.0,39702.0,0.12875509]
[1645195533806,0.3,39719.0,39699.0,0.12375509]
[1645195533807,0.1,39711.0,39699.0,0.12375509]
[1645195534007,0.1,39703.0,39699.0,0.12375509]
[1645195534202,0.1,39700.0,39699.0,0.12375509]
[1645195534403,0.1,39700.0,39699.0,0.64783818]
[1645195534604,0.1,39700.0,39699.0,0.3231385]
[1645195534808,0.22256284,39713.0,39699.0,0.12375509]
[1645195535103,0.22256284,39713.0,39694.0,0.00043752]
[1645195535304,0.22256284,39713.0,39696.0,0.000322]
[1645195535707,0.3999,39712.0,39696.0,0.22454115]
[1645195535903,0.0591,39711.0,39698.0,0.22511524]
[1645195536102,0.072121,39711.0,39697.0,0.12375509]
[1645195536304,0.122121,39711.0,39694.0,0.00043752]
[1645195536552,0.122121,39711.0,39700.0,0.32964874]
[1645195537151,0.122121,39711.0,39700.0,0.00032197]
[1645195537352,0.122121,39711.0,39698.0,0.20004365]
[1645195537753,0.122121,39711.0,39700.0,0.00032197]
[1645195538055,0.063017,39710.0,39700.0,0.00032197]